fUST/lending_fUST_20250701
["ID","MTS","AMOUNT","RATE_DAILY","PERIOD"]
[368753759,1751347849975,-500.0,0.00018876,2]
[368753760,1751347849985,-460.0,0.00018876,2]
[368753761,1751347849994,-460.0,0.00018876,2]
[368753762,1751347850005,-460.0,0.00018876,2]
[368753763,1751347850016,-460.0,0.00018876,2]
[368753764,1751347850027,-460.0,0.00018876,2]
[368753765,1751347850037,-460.0,0.00018876,2]
[368753766,1751347850047,-460.0,0.00018876,2]
[368753767,1751347850058,-460.0,0.00018876,2]
[368753768,1751347850068,-460.0,0.00018876,2]
[368753769,1751347850078,-460.0,0.00018876,2]
[368753770,1751347850088,-460.0,0.00018876,2]
[368753771,1751347850098,-460.0,0.00018876,2]
[368753772,1751347850108,-460.0,0.00018876,2]
[368753773,1751347850118,-358.01,0.00018876,2]
[368753774,1751347850128,-460.0,0.00018876,2]
[368753775,1751347850138,-460.0,0.00018877,2]
[368753776,1751347850148,-460.0,0.00018877,2]
[368753777,1751347850157,-460.0,0.00018877,2]
[368753778,1751347850166,-460.0,0.00018877,2]
[368753779,1751347850261,-460.0,0.00018877,2]
[368753780,1751347850272,-460.0,0.00018877,2]
[368753781,1751347850281,-460.0,0.00018877,2]
[368753782,1751347850291,-460.0,0.00018877,2]
[368753783,1751347850300,-460.0,0.00018877,2]
[368753784,1751347850310,-460.0,0.00018877,2]
[368753785,1751347850319,-460.0,0.00018877,2]
[368753786,1751347850329,-460.0,0.00018877,2]
[368753787,1751347850338,-460.0,0.00018877,2]
[368753788,1751347850347,-460.0,0.00018877,2]
[368753789,1751347850356,-252.64,0.00018877,2]
[368753790,1751347850366,-578.58387587,0.00018877,2]
[368753791,1751347850376,-467.00000007,0.00018877,2]
[368753792,1751347850385,-460.0,0.00018877,2]
[368753793,1751347850394,-460.0,0.00018877,2]
[368753794,1751347850404,-460.0,0.00018877,2]
[368753795,1751347850415,-460.0,0.00018877,2]
[368753796,1751347850425,-460.0,0.00018877,2]
[368753797,1751347850435,-460.0,0.00018877,2]
[368753798,1751347850444,-460.0,0.00018877,2]
[368753799,1751347850453,-460.0,0.00018877,2]
[368753800,1751347850464,-460.0,0.00018877,2]
[368753801,1751347850477,-460.0,0.00018877,2]
[368753802,1751347850487,-460.0,0.00018877,2]
[368753803,1751347850496,-460.0,0.00018877,2]
[368753804,1751347850506,-194.29,0.00018877,2]
[368753805,1751347850517,-460.0,0.00018877,2]
[368753806,1751347850527,-255.3,0.00018877,2]
[368753807,1751347850536,-460.0,0.00018877,2]
[368753808,1751347850549,-1208.81,0.00018877,2]
[368753809,1751347850560,-460.0,0.00018877,2]
[368753810,1751347850571,-460.0,0.00018877,2]
[368753811,1751347850583,-460.0,0.00018877,2]
[368753812,1751347850594,-460.0,0.00018877,2]
[368753813,1751347850604,-757.73,0.00018877,2]
[368753814,1751347850614,-460.0,0.00018877,2]
[368753815,1751347850625,-460.0,0.00018877,2]
[368753816,1751347850635,-460.0,0.00018877,2]
[368753817,1751347850644,-460.0,0.00018877,2]
[368753818,1751347850654,-1339.89,0.00018877,2]
[368753819,1751347850663,-2448.16,0.00018877,2]
[368753820,1751347850673,-460.0,0.00018877,2]
[368753821,1751347850683,-496.49,0.00018877,2]
[368753822,1751347850693,-460.0,0.00018877,2]
[368753823,1751347850703,-460.0,0.00018877,2]
[368753824,1751347850713,-460.0,0.00018877,2]
[368753825,1751347850723,-765.05,0.00018877,2]
[368753826,1751347850734,-460.0,0.00018877,2]
[368753827,1751347850744,-2184.2,0.00018877,2]
[368753828,1751347850755,-460.0,0.00018877,2]
[368753829,1751347850765,-460.0,0.00018877,2]
[368753830,1751347850775,-339.18,0.00018877,2]
[368753831,1751347850786,-460.0,0.00018877,2]
[368753832,1751347850796,-878.15,0.00018877,2]
[368753833,1751347850806,-460.0,0.00018877,2]
[368753834,1751347850816,-945.27,0.00018877,2]
[368753835,1751347850825,-460.0,0.00018877,2]
[368753836,1751347850838,-460.0,0.00018877,2]
[368753837,1751347850854,-180.92,0.00018877,2]
[368753838,1751347850864,-460.0,0.00018877,2]
[368753839,1751347850875,-460.0,0.00018877,2]
[368753840,1751347850885,-460.0,0.00018877,2]
[368753841,1751347850895,-500.0,0.00018878,2]
[368753842,1751347850905,-243.28102153,0.00018879,2]
[368753843,1751347850915,-460.0,0.00018879,2]
[368753844,1751347850926,-460.0,0.00018879,2]
[368753845,1751347850937,-460.0,0.00018879,2]
[368753846,1751347850947,-460.0,0.00018879,2]
[368753847,1751347850957,-460.0,0.00018879,2]
[368753848,1751347850966,-460.0,0.00018879,2]
[368753849,1751347850978,-460.0,0.00018879,2]
[368753850,1751347850989,-429.50488374,0.00018879,2]
[368753851,1751347851000,-505.05,0.00018879,2]
[368753852,1751347851010,-460.0,0.00018879,2]
[368753853,1751347851021,-460.0,0.00018879,2]
[368753854,1751347851030,-609.4386068,0.00018879,2]
[368753855,1751347851040,-460.0,0.00018879,2]
[368753856,1751347851050,-500.0,0.00018879,2]
[368753857,1751347851059,-460.0,0.00018879,2]
[368753858,1751347851069,-460.0,0.00018879,2]
[368753859,1751347851079,-465.80511383,0.00018879,2]
[368753860,1751347851088,-460.0,0.00018879,2]
[368753861,1751347851098,-581.85,0.00018879,2]
[368753862,1751347851107,-460.0,0.00018879,2]
[368753863,1751347851116,-460.0,0.00018879,2]
[368753864,1751347851126,-460.0,0.00018879,2]
[368753865,1751347851135,-460.0,0.00018879,2]
[368753866,1751347851145,-460.0,0.00018879,2]
[368753867,1751347851154,-460.0,0.00018879,2]
[368753868,1751347851164,-460.0,0.0001888,2]
[368753869,1751347851174,-460.0,0.0001888,2]
[368753870,1751347851184,-589.4846644,0.000189,2]
[368753871,1751347851195,-2999.27789137,0.000189,2]
[368753872,1751347851205,-621.20593158,0.00018942,2]
[368753873,1751347851215,-12571.40790328,0.00018986,2]
[368753874,1751347851224,-160.0,0.00018986,2]
[368753875,1751347851234,-847.53272281,0.00018986,2]
[368753876,1751347851245,-160.0,0.00018986,2]
[368753877,1751347851254,-837.20943635,0.00018986,2]
[368753878,1751347851264,-160.0,0.00018986,2]
[368753879,1751347851273,-160.0,0.00018986,2]
[368753880,1751347851283,-160.0,0.00018986,2]
[368753881,1751347851292,-160.0,0.00018986,2]
[368753882,1751347851302,-160.0,0.00018986,2]
[368753883,1751347851312,-230.32585361,0.00018986,2]
[368753884,1751347851322,-213.87551669,0.00018986,2]
[368753885,1751347851332,-215.01728679,0.00018986,2]
[368753886,1751347851341,-37.14963876,0.00018987,2]
[368753887,1751347851828,-122.85036124,0.00018987,2]
[368753888,1751347851840,-456.49674514,0.00018999,2]
[368753889,1751347851850,-36366.86117101,0.00019,2]
[368753890,1751347851860,-2698.0684722,0.00019096,2]
[368753891,1751347851870,-460.0,0.00019149,2]
[368753892,1751347851880,-178.44,0.00019149,2]
[368753893,1751347851890,-460.0,0.00019149,2]
[368753894,1751347851899,-620.53,0.00019149,2]
[368753895,1751347851909,-1449.87,0.00019149,2]
[368753896,1751347851919,-460.0,0.00019149,2]
[368753897,1751347851929,-460.0,0.00019149,2]
[368753898,1751347851939,-1310.1,0.00019149,2]
[368753899,1751347851948,-1152.39,0.00019149,2]
[368753900,1751347851958,-1521.08,0.00019149,2]
[368753901,1751347851968,-501.82,0.00019149,2]
[368753902,1751347851979,-961.2,0.00019149,2]
[368753903,1751347851989,-460.0,0.00019149,2]
[368753904,1751347851999,-460.0,0.00019149,2]
[368753905,1751347852008,-331.58,0.00019149,2]
[368753906,1751347852019,-460.0,0.00019149,2]
[368753907,1751347852028,-1069.3,0.00019149,2]
[368753908,1751347852038,-187.59,0.00019149,2]
[368753909,1751347852053,-1698.43,0.00019149,2]
[368753910,1751347852078,-460.0,0.00019149,2]
[368753911,1751347852095,-460.0,0.0001915,2]
[368753912,1751347852116,-460.0,0.0001915,2]
[368753913,1751347852136,-605.32,0.0001915,2]
[368753914,1751347852159,-460.0,0.0001915,2]
[368753915,1751347852178,-460.0,0.0001915,2]
[368753916,1751347852196,-460.0,0.0001915,2]
[368753917,1751347852216,-460.0,0.0001915,2]
[368753918,1751347852230,-460.0,0.0001915,2]
[368753919,1751347852248,-156.22,0.0001915,2]
[368753920,1751347852267,-460.0,0.0001915,2]
[368753921,1751347852289,-309.02,0.0001915,2]
[368753922,1751347852307,-855.38,0.0001915,2]
[368753923,1751347852321,-459.99,0.0001915,2]
[368753924,1751347852342,-460.0,0.0001915,2]
[368753925,1751347852357,-542.51,0.0001915,2]
[368753926,1751347852375,-460.0,0.0001915,2]
[368753927,1751347852391,-460.0,0.0001915,2]
[368753928,1751347852406,-460.0,0.0001915,2]
[368753929,1751347852422,-460.0,0.0001915,2]
[368753930,1751347852438,-283.5,0.0001915,2]
[368753931,1751347852454,-460.0,0.0001915,2]
[368753932,1751347852468,-460.0,0.0001915,2]
[368753933,1751347852485,-515.60749424,0.0001915,2]
[368753934,1751347852506,-460.0,0.0001915,2]
[368753935,1751347852521,-460.0,0.0001915,2]
[368753936,1751347852537,-460.0,0.0001915,2]
[368753937,1751347852553,-460.0,0.0001915,2]
[368753938,1751347852570,-460.0,0.0001915,2]
[368753939,1751347852585,-460.0,0.0001915,2]
[368753940,1751347852601,-460.0,0.0001915,2]
[368753941,1751347852617,-460.0,0.0001915,2]
[368753942,1751347852632,-576.35,0.0001915,2]
[368753943,1751347852649,-566.66,0.0001915,2]
[368753944,1751347852666,-365.9830439,0.00019151,2]
[368753945,1751347852675,-460.0,0.00019151,2]
[368753946,1751347852686,-460.0,0.00019151,2]
[368753947,1751347852695,-460.0,0.00019151,2]
[368753948,1751347852705,-460.0,0.00019151,2]
[368753949,1751347852715,-460.0,0.00019151,2]
[368753950,1751347852725,-425.6891648,0.00019151,2]
[368753951,1751347852735,-537.03,0.00019151,2]
[368753952,1751347852744,-460.0,0.00019151,2]
[368753953,1751347852754,-460.0,0.00019151,2]
[368753954,1751347852763,-460.0,0.00019151,2]
[368753955,1751347852773,-460.0,0.00019151,2]
[368753956,1751347852783,-460.0,0.00019151,2]
[368753957,1751347852792,-460.0,0.00019151,2]
[368753958,1751347852802,-460.0,0.00019151,2]
[368753959,1751347852812,-478.05,0.00019151,2]
[368753960,1751347852822,-460.0,0.00019151,2]
[368753961,1751347852832,-466.17875467,0.00019151,2]
[368753962,1751347852842,-199.30577427,0.00019151,2]
[368753963,1751347852852,-460.0,0.00019151,2]
[368753964,1751347852861,-460.0,0.00019151,2]
[368753965,1751347852871,-460.0,0.00019151,2]
[368753966,1751347853091,-460.0,0.00019151,2]
[368753967,1751347853108,-460.0,0.00019151,2]
[368753968,1751347853118,-460.0,0.00019151,2]
[368753969,1751347853130,-1208.81,0.00019151,2]
[368753970,1751347853139,-460.0,0.00019151,2]
[368753971,1751347853149,-460.0,0.00019151,2]
[368753972,1751347853159,-391.85,0.00019151,2]
[368753973,1751347853169,-757.73,0.00019151,2]
[368753974,1751347853178,-460.0,0.00019151,2]
[368753975,1751347853188,-355.84,0.00019151,2]
[368753976,1751347853197,-460.0,0.00019151,2]
[368753977,1751347853208,-460.0,0.00019151,2]
[368753978,1751347853218,-1339.89,0.00019151,2]
[368753979,1751347853228,-2448.16,0.00019151,2]
[368753980,1751347853238,-460.0,0.00019151,2]
[368753981,1751347853248,-496.49,0.00019151,2]
[368753982,1751347853258,-460.0,0.00019151,2]
[368753983,1751347853268,-460.0,0.00019151,2]
[368753984,1751347853278,-460.0,0.00019151,2]
[368753985,1751347853288,-765.05,0.00019151,2]
[368753986,1751347853297,-2184.2,0.00019151,2]
[368753987,1751347853307,-460.0,0.00019151,2]
[368753988,1751347853318,-170.3,0.00019151,2]
[368753989,1751347853327,-878.15,0.00019151,2]
[368753990,1751347853337,-478.4,0.00019151,2]
[368753991,1751347853347,-945.27,0.00019151,2]
[368753992,1751347853356,-585.85512112,0.00019151,2]
[368753993,1751347853366,-460.0,0.00019151,2]
[368753994,1751347853375,-466.09452312,0.00019151,2]
[368753995,1751347853384,-460.0,0.00019151,2]
[368753996,1751347853395,-500.0,0.00019152,2]
[368753997,1751347853404,-399.99,0.00019153,2]
[368753998,1751347853414,-460.0,0.00019153,2]
[368753999,1751347853424,-460.0,0.00019153,2]
[368754000,1751347853433,-238.28,0.00019153,2]
[368754001,1751347853443,-460.0,0.00019153,2]
[368754002,1751347853452,-460.0,0.00019153,2]
[368754003,1751347853462,-210.9,0.00019153,2]
[368754004,1751347853471,-328.68972579,0.00019153,2]
[368754005,1751347853480,-460.0,0.00019153,2]
[368754006,1751347853490,-455.0,0.00019153,2]
[368754007,1751347853501,-467.70714209,0.00019153,2]
[368754008,1751347853511,-212.37282795,0.00019153,2]
[368754009,1751347853520,-460.0,0.00019153,2]
[368754010,1751347853530,-460.0,0.00019153,2]
[368754011,1751347853539,-460.0,0.00019154,2]
[368754012,1751347853549,-460.0,0.00019154,2]
[368754013,1751347853559,-199.18456187,0.00019178,2]
[368754014,1751347853568,-151.0,0.00019178,2]
[368754015,1751347853578,-500.0,0.00019178,2]
[368754016,1751347853588,-327.50951355,0.00019178,2]
[368754017,1751347853599,-500.0,0.00019178,2]
[368754018,1751347853609,-500.0,0.00019178,2]
[368754019,1751347853618,-500.0,0.00019178,2]
[368754020,1751347853628,-398.72695812,0.00019187,2]
[368754021,1751347853637,-500.0,0.0001919,2]
[368754022,1751347853646,-151.25262251,0.00019205,2]
[368754023,1751347853656,-1151.0101988,0.00019205,2]
[368754024,1751347853665,-575.5050994,0.00019205,2]
[368754025,1751347853675,-159.266168,0.00019205,2]
[368754026,1751347853685,-2698.0684722,0.00019275,2]
[368754027,1751347853695,-500.0,0.0001928,2]
[368754028,1751347853704,-151.0,0.00019329,2]
[368754029,1751347853714,-151.0,0.00019329,2]
[368754030,1751347853724,-151.0,0.00019329,2]
[368754031,1751347853734,-151.0,0.00019329,2]
[368754032,1751347853743,-151.0,0.00019329,2]
[368754033,1751347853755,-151.0,0.00019329,2]
[368754034,1751347853764,-151.0,0.00019329,2]
[368754035,1751347853774,-151.0,0.00019329,2]
[368754036,1751347853783,-151.0,0.00019329,2]
[368754037,1751347853792,-151.0,0.00019329,2]
[368754038,1751347853801,-151.0,0.00019329,2]
[368754039,1751347853811,-151.0,0.00019329,2]
[368754040,1751347853822,-151.0,0.00019329,2]
[368754041,1751347853832,-151.0,0.00019329,2]
[368754042,1751347853842,-151.0,0.00019329,2]
[368754043,1751347853852,-65951.7008404,0.00019329,2]
[368754044,1751347853871,-19683.11254412,0.00019329,2]
[368754045,1751347853883,-14365.18661548,0.00019329,2]
[368754046,1751347853893,-601.53,0.00019423,2]
[368754047,1751347853903,-620.53,0.00019423,2]
[368754048,1751347853913,-1449.87,0.00019423,2]
[368754049,1751347853923,-460.0,0.00019423,2]
[368754050,1751347853933,-269.46,0.00019423,2]
[368754051,1751347853943,-1310.1,0.00019423,2]
[368754052,1751347853952,-1152.39,0.00019423,2]
[368754053,1751347853962,-1521.08,0.00019423,2]
[368754054,1751347853972,-501.82,0.00019423,2]
[368754055,1751347853981,-961.2,0.00019423,2]
[368754056,1751347853992,-460.0,0.00019423,2]
[368754057,1751347854001,-460.0,0.00019423,2]
[368754058,1751347854011,-1069.3,0.00019423,2]
[368754059,1751347854021,-1698.43,0.00019423,2]
[368754060,1751347854031,-460.0,0.00019423,2]
[368754061,1751347854041,-460.0,0.00019424,2]
[368754062,1751347854050,-538.5,0.00019424,2]
[368754063,1751347854060,-460.0,0.00019424,2]
[368754064,1751347854070,-460.0,0.00019424,2]
[368754065,1751347854079,-460.0,0.00019424,2]
[368754066,1751347854089,-441.75,0.00019424,2]
[368754067,1751347854099,-460.0,0.00019424,2]
[368754068,1751347854108,-855.38,0.00019424,2]
[368754069,1751347854117,-460.0,0.00019424,2]
[368754070,1751347854127,-460.0,0.00019424,2]
[368754071,1751347854136,-460.0,0.00019424,2]
[368754072,1751347854145,-224.74,0.00019424,2]
[368754073,1751347854155,-460.0,0.00019424,2]
[368754074,1751347854164,-460.0,0.00019424,2]
[368754075,1751347854174,-460.0,0.00019424,2]
[368754076,1751347854183,-460.0,0.00019424,2]
[368754077,1751347854192,-460.0,0.00019424,2]
[368754078,1751347854202,-460.0,0.00019424,2]
[368754079,1751347854212,-460.0,0.00019424,2]
[368754080,1751347854222,-460.0,0.00019424,2]
[368754081,1751347854231,-460.0,0.00019424,2]
[368754082,1751347854241,-460.0,0.00019424,2]
[368754083,1751347854252,-460.0,0.00019425,2]
[368754084,1751347854262,-460.0,0.00019425,2]
[368754085,1751347854271,-460.0,0.00019425,2]
[368754086,1751347854281,-460.0,0.00019425,2]
[368754087,1751347854290,-460.0,0.00019425,2]
[368754088,1751347854300,-525.12,0.00019425,2]
[368754089,1751347854310,-421.32,0.00019425,2]
[368754090,1751347854319,-460.0,0.00019425,2]
[368754091,1751347854329,-309.05,0.00019425,2]
[368754092,1751347854341,-151.0,0.00019425,2]
[368754093,1751347854351,-151.0,0.00019425,2]
[368754094,1751347854361,-911.637542,0.00019425,2]
[368754095,1751347854371,-911.637542,0.00019425,2]
[368754096,1751347854380,-460.0,0.00019425,2]
[368754097,1751347854390,-151.0,0.00019425,2]
[368754098,1751347854399,-151.603124,0.00019425,2]
[368754099,1751347854410,-395.13,0.00019425,2]
[368754100,1751347854420,-460.0,0.00019425,2]
[368754101,1751347854430,-460.0,0.00019425,2]
[368754102,1751347854439,-460.0,0.00019425,2]
[368754103,1751347854449,-1208.81,0.00019425,2]
[368754104,1751347854459,-460.0,0.00019425,2]
[368754105,1751347854468,-151.0,0.00019425,2]
[368754106,1751347854479,-460.0,0.00019425,2]
[368754107,1751347854489,-757.73,0.00019425,2]
[368754108,1751347854501,-152.378538,0.00019425,2]
[368754109,1751347854511,-151.0,0.00019425,2]
[368754110,1751347854520,-460.0,0.00019425,2]
[368754111,1751347854531,-460.0,0.00019425,2]
[368754112,1751347854540,-151.0,0.00019425,2]
[368754113,1751347854550,-151.0,0.00019425,2]
[368754114,1751347854560,-151.0,0.00019425,2]
[368754115,1751347854569,-460.0,0.00019425,2]
[368754116,1751347854580,-1339.89,0.00019425,2]
[368754117,1751347854590,-2448.16,0.00019425,2]
[368754118,1751347854600,-470.80745548,0.00019425,2]
[368754119,1751347854610,-496.49,0.00019425,2]
[368754120,1751347854620,-460.0,0.00019425,2]
[368754121,1751347854632,-765.05,0.00019425,2]
[368754122,1751347854641,-2184.2,0.00019425,2]
[368754123,1751347854651,-151.0,0.00019425,2]
[368754124,1751347854662,-151.0,0.00019425,2]
[368754125,1751347854671,-460.0,0.00019425,2]
[368754126,1751347854681,-878.15,0.00019425,2]
[368754127,1751347854690,-945.27,0.00019425,2]
[368754128,1751347854701,-170.892341,0.00019425,2]
[368754129,1751347854710,-170.892341,0.00019425,2]
[368754130,1751347854720,-460.0,0.00019425,2]
[368754131,1751347854730,-519.37308,0.00019425,2]
[368754132,1751347854739,-151.0,0.00019425,2]
[368754133,1751347854749,-519.37308,0.00019425,2]
[368754134,1751347854759,-460.0,0.00019425,2]
[368754135,1751347854768,-237.87,0.00019426,2]
[368754136,1751347854778,-460.0,0.00019427,2]
[368754137,1751347854788,-460.0,0.00019427,2]
[368754138,1751347854799,-460.0,0.00019427,2]
[368754139,1751347854808,-564.61,0.00019427,2]
[368754140,1751347854818,-460.0,0.00019427,2]
[368754141,1751347854828,-306.6,0.00019427,2]
[368754142,1751347854838,-460.0,0.00019428,2]
[368754143,1751347854848,-2698.0684722,0.00019514,2]
[368754144,1751347854858,-177.5384831,0.00019534,2]
[368754145,1751347854868,-398.72695812,0.00019598,2]
[368754146,1751347854878,-690.642,0.0001968,2]
[368754147,1751347854888,-5000.0,0.0001968,2]
[368754148,1751347854900,-500.0,0.0001968,2]
[368754149,1751347854910,-151.0,0.0001968,2]
[368754150,1751347854921,-500.0,0.0001968,2]
[368754151,1751347854931,-151.0,0.0001968,2]
[368754152,1751347854940,-151.0,0.0001968,2]
[368754153,1751347854950,-3238.38717627,0.0001968,2]
[368754154,1751347854959,-500.0,0.0001968,2]
[368754155,1751347854969,-500.0,0.0001968,2]
[368754156,1751347854979,-151.0,0.0001968,2]
[368754157,1751347854988,-500.0,0.0001968,2]
[368754158,1751347854998,-500.0,0.0001968,2]
[368754159,1751347855008,-151.0,0.0001968,2]
[368754160,1751347855018,-500.0,0.0001968,2]
[368754161,1751347855027,-151.0,0.0001968,2]
[368754162,1751347855037,-500.0,0.0001968,2]
[368754163,1751347855047,-151.0,0.0001968,2]
[368754164,1751347855056,-500.0,0.0001968,2]
[368754165,1751347855066,-151.0,0.0001968,2]
[368754166,1751347855076,-151.0,0.0001968,2]
[368754167,1751347855086,-500.0,0.0001968,2]
[368754168,1751347855095,-151.0,0.0001968,2]
[368754169,1751347855105,-500.0,0.0001968,2]
[368754170,1751347855115,-151.0,0.0001968,2]
[368754171,1751347855126,-500.0,0.0001968,2]
[368754172,1751347855137,-500.0,0.0001968,2]
[368754173,1751347855147,-151.0,0.0001968,2]
[368754174,1751347855157,-171.50243847,0.0001968,2]
[368754175,1751347855166,-500.0,0.0001968,2]
[368754176,1751347855176,-151.0,0.0001968,2]
[368754177,1751347855187,-500.0,0.0001968,2]
[368754178,1751347855196,-151.0,0.0001968,2]
[368754179,1751347855207,-151.0,0.0001968,2]
[368754180,1751347855217,-500.0,0.0001968,2]
[368754181,1751347855227,-151.0,0.0001968,2]
[368754182,1751347855237,-500.0,0.0001968,2]
[368754183,1751347855246,-151.0,0.0001968,2]
[368754184,1751347855257,-500.0,0.0001968,2]
[368754185,1751347855267,-500.0,0.0001968,2]
[368754186,1751347855277,-151.0,0.0001968,2]
[368754187,1751347855287,-500.0,0.0001968,2]
[368754188,1751347855297,-500.0,0.0001968,2]
[368754189,1751347855307,-151.0,0.0001968,2]
[368754190,1751347855317,-500.0,0.0001968,2]
[368754191,1751347855327,-500.0,0.0001968,2]
[368754192,1751347855338,-151.0,0.0001968,2]
[368754193,1751347855348,-500.0,0.0001968,2]
[368754194,1751347855358,-500.0,0.0001968,2]
[368754195,1751347855367,-151.0,0.0001968,2]
[368754196,1751347855377,-500.0,0.0001968,2]
[368754197,1751347855387,-151.0,0.0001968,2]
[368754198,1751347855397,-500.0,0.0001968,2]
[368754199,1751347855408,-500.0,0.0001968,2]
[368754200,1751347855418,-500.0,0.0001968,2]
[368754201,1751347855428,-500.0,0.0001968,2]
[368754202,1751347855437,-500.0,0.0001968,2]
[368754203,1751347855447,-500.0,0.0001968,2]
[368754204,1751347855457,-500.0,0.0001968,2]
[368754205,1751347855467,-500.0,0.0001968,2]
[368754206,1751347855479,-500.0,0.0001968,2]
[368754207,1751347855490,-500.0,0.0001968,2]
[368754208,1751347855500,-500.0,0.0001968,2]
[368754209,1751347855636,-500.0,0.0001968,2]
[368754210,1751347855646,-151.0,0.0001968,2]
[368754211,1751347855656,-151.0,0.0001968,2]
[368754212,1751347855666,-500.0,0.0001968,2]
[368754213,1751347855675,-500.0,0.0001968,2]
[368754214,1751347855685,-500.0,0.0001968,2]
[368754215,1751347855695,-500.0,0.0001968,2]
[368754216,1751347855704,-151.0,0.0001968,2]
[368754217,1751347855714,-151.0,0.0001968,2]
[368754218,1751347855724,-500.0,0.0001968,2]
[368754219,1751347855734,-500.0,0.0001968,2]
[368754220,1751347855744,-500.0,0.0001968,2]
[368754221,1751347855754,-500.0,0.0001968,2]
[368754222,1751347855764,-151.0,0.0001968,2]
[368754223,1751347855773,-151.0,0.0001968,2]
[368754224,1751347855783,-500.0,0.0001968,2]
[368754225,1751347855793,-500.0,0.0001968,2]
[368754226,1751347855802,-500.0,0.0001968,2]
[368754227,1751347855812,-25000.0,0.0001968,2]
[368754228,1751347855822,-500.0,0.0001968,2]
[368754229,1751347855832,-151.0,0.0001968,2]
[368754230,1751347855842,-500.0,0.0001968,2]
[368754231,1751347855853,-500.0,0.0001968,2]
[368754232,1751347855863,-500.0,0.0001968,2]
[368754233,1751347855873,-500.0,0.0001968,2]
[368754234,1751347855884,-222.77313815,0.0001968,2]
[368754235,1751347855894,-2724.23282143,0.0001968,2]
[368754236,1751347855903,-500.0,0.0001968,2]
[368754237,1751347855913,-246.24400665,0.0001968,2]
[368754238,1751347855923,-500.0,0.0001968,2]
[368754239,1751347855934,-500.0,0.0001968,2]
[368754240,1751347855944,-196.08887944,0.0001968,2]
[368754241,1751347855953,-500.0,0.0001968,2]
[368754242,1751347855963,-500.0,0.0001968,2]
[368754243,1751347855972,-500.0,0.0001968,2]
[368754244,1751347855982,-500.0,0.0001968,2]
[368754245,1751347855992,-500.0,0.0001968,2]
[368754246,1751347856001,-500.0,0.0001968,2]
[368754247,1751347856010,-500.0,0.0001968,2]
[368754248,1751347856020,-500.0,0.0001968,2]
[368754249,1751347856030,-500.0,0.0001968,2]
[368754250,1751347856040,-500.0,0.0001968,2]
[368754251,1751347856049,-500.0,0.0001968,2]
[368754252,1751347856059,-500.0,0.0001968,2]
[368754253,1751347856069,-500.0,0.0001968,2]
[368754254,1751347856078,-470.11513765,0.0001968,2]
[368754255,1751347856088,-207.4,0.0001968,2]
[368754256,1751347856097,-500.0,0.0001968,2]
[368754257,1751347856107,-500.0,0.0001968,2]
[368754258,1751347856116,-500.0,0.0001968,2]